[Event "1000GM Summer GM-I 2024"]
[Site "San Jose"]
[Date "2024.07.05"]
[Round "4.1"]
[White "Sivakumar, Shaashwath"]
[Black "Arenas, David"]
[Result "0-1"]
[ECO "E04"]
[WhiteElo "2288"]
[BlackElo "2357"]
[Annotator "TA"]
[PlyCount "94"]
[EventDate "2024.07.03"]
[EventType "tourn"]
[EventCountry "USA"]
[SourceTitle "playchess.com"]
[Source "ChessBase"]
[SourceQuality "1"]
[TimeControl "5400+30"]

{[%evp 14,94,54,58,65,66,75,64,89,10,29,16,20,7,11,7,54,54,74,55,51,45,88,79,80,85,144,137,143,127,121,137,177,172,163,63,187,0,50,23,33,47,36,17,26,19,52,8,16,20,27,-128,-122,-115,-125,-212,-224,-212,-235,-230,-229,-227,-225,-245,-239,-243,-246,-597,-598,-595,-596,-618,-621,-606,-610,-595,-594,-1633,-1547,-2362,-2153,-1743,-1680]} 1. d4 {[%emt 0:00:07]} Nf6 {[%emt 0:05:02]} 2. c4 {[%emt 0:00:07]} e6 {[%emt 0:00:03]} 3. g3 {[%emt 0:00:02]} d5 {[%emt 0:00:06]} 4. Nf3 {[%emt 0:00:03]} dxc4 {[%emt 0:00:13]} 5. Bg2 {[%emt 0:00:04]} a6 {[%emt 0:00:06]} 6. O-O {[%emt 0:00:06]} Nc6 {[%emt 0:00:07]} 7. e3 {[%emt 0:00:03]} Rb8 {[%emt 0:00:07]} 8. Nfd2 {[%emt 0:00:06]} e5 {[%emt 0:00:05]} 9. Bxc6+ {[%emt 0:00:04]} bxc6 {[%emt 0:00:07]} 10. dxe5 {[%emt 0:00:02]} Nd5 {[%emt 0:00:08] Weiß steht etwas besser.} 11. Nxc4 {[%emt 0:26:03]} (11. Qe2 $16) 11... Bh3 $11 {[%emt 0:03:58]} 12. Re1 {[%emt 0:00:03]} Nb4 $1 {[%emt 0:00:03] [#] ...Qxd1 wäre nun fies.} 13. Qe2 {[%emt 1:10:10] Schwarz muss nun Rd1 beachten.} Qd3 {[%emt 0:00:56]} 14. Nba3 {[%emt 0:00:00]} h5 {[%emt 0:02:54]} (14... Rd8 $11 15. Bd2 Qxe2 16. Rxe2 Bg4) 15. f3 $14 {[%emt 0:00:00]} Be6 {[%emt 0:24:00]} 16. e4 {[%emt 0:00:00]} (16. Bd2 {vereinfacht} Qxe2 17. Rxe2 h4 18. g4) 16... h4 {[%emt 0:11:48]} 17. g4 {[%emt 0:00:00]} h3 {[%emt 0:00:02]} 18. Be3 {[%emt 0:00:00]} Qxe2 {[%emt 0:05:12]} 19. Rxe2 {[%emt 0:00:00]} Nd3 {[%emt 0:00:01]} (19... a5 $142) 20. Rd2 $16 {[%emt 0:00:00]} Bxa3 {[%emt 0:02:42]} 21. Nxa3 {[%emt 0:00:00]} Nxe5 {[%emt 0:00:03]} 22. Kf2 {[%emt 0:00:00]} O-O {[%emt 0:01:10]} 23. b3 {[%emt 0:00:00]} a5 {[%emt 0:00:17][%cal Oa5a4]} 24. Rad1 {[%emt 0:00:00]} (24. Bf4 $18 f6 25. Rc2) 24... Rfe8 {[%emt 0:02:46]} (24... a4 $14) 25. Bc5 $2 {[%emt 0:00:00]} (25. Bf4 $18 Ng6 26. Bxc7) 25... a4 {[%emt 0:00:15]} 26. b4 {[%emt 0:00:00]} f6 {[%emt 0:00:08]} 27. Nb1 {[%emt 0:00:00]} g5 {[%emt 0:01:43]} 28. Nc3 {[%emt 0:00:00]} a3 {[%emt 0:00:08]} 29. Nb1 {[%emt 0:00:00]} Nc4 {[%emt 0:01:59]} 30. Rc2 {[%emt 0:00:00]} Red8 {[%emt 0:00:35]} 31. Rxd8+ {[%emt 0:00:02]} Rxd8 {[%emt 0:00:01]} 32. Be7 $2 {[%emt 0:00:29]} (32. Ke2 $11) 32... Rd1 $17 {[%emt 0:00:15]} 33. Nc3 {[%emt 0:00:02]} Rh1 {[%emt 0:01:01] Schwarz steht aktiver.} 34. Kg3 {[%emt 0:00:03]} (34. Ne2 $17 {ist eine bessere Verteidigung.}) 34... Rg1+ $19 {[%emt 0:03:18]} 35. Kxh3 {[%emt 0:00:08][%cal Oc3e2] [#]} Ne3 $1 {[%emt 0:00:25][%cal Re3g4]} 36. Bc5 {[%emt 0:00:25]} Bc4 {[%emt 0:04:07]} (36... Nxc2 37. Bxg1 Nxb4 38. Bc5 Nxa2 39. Ne2 $16 (39. Nxa2 Bxa2 40. Kg2 Kf7 $16)) 37. Ne2 {[%emt 0:01:19]} Nxc2 {[%emt 0:00:05]} 38. Nxg1 {[%emt 0:00:04]} Bxa2 {[%emt 0:00:03][%mdl 4096] Endspiel. KBN-KBN} 39. Ne2 {[%emt 0:00:15]} Bc4 {[%emt 0:00:57]} 40. Nd4 {[%emt 0:00:20]} (40. Nc3) 40... Ne1 {[%emt 0:00:27] Zielt auf ...a2 ab. Schwarz steht klar auf Gewinn.} 41. Nxc6 {[%emt 0:00:35]} Nxf3 {[%emt 0:00:21] ( -> ...a2)} 42. Nd4 {[%emt 0:00:57]} Nd2 {[%emt 0:06:55]} 43. Nc2 {[%emt 0:00:59]} Nxe4 {[%emt 0:00:26]} 44. Kg2 {[%emt 0:00:56] Es drohte Bf1+} Nxc5 {[%emt 0:00:05]} 45. bxc5 {[%emt 0:00:05]} a2 {[%emt 0:00:03]} 46. Kf3 {[%emt 0:00:08]} Bb3 {[%emt 0:00:33]} 47. Na1 {[%emt 0:00:05]} Bd1+ {[%emt 0:00:03] Nie zu früh aufgeben!   Gewichteter Fehlerwert: Weiß=0.54/Schwarz=0.13 (sehr präzise) .  Gewinn verpasst:   	Weiß=1     	---        Fehler:       	Weiß=5     	Schwarz=4     Ungenau:       	Weiß=3     	Schwarz=2     OK:         	Weiß=10    	Schwarz=12    Bester:       	Weiß=8     	Schwarz=6     Stark:        	---       	Schwarz=2} 0-1

[Event "1000GM Summer GM-I 2024"]
[Site "San Jose"]
[Date "2024.07.05"]
[Round "4.2"]
[White "Gumularz, Szymon"]
[Black "Lu, Maximillian"]
[Result "1/2-1/2"]
[ECO "A17"]
[WhiteElo "2587"]
[BlackElo "2380"]
[Annotator "RC"]
[PlyCount "101"]
[EventDate "2024.07.03"]
[EventType "tourn"]
[EventCountry "USA"]
[SourceTitle "playchess.com"]
[Source "ChessBase"]
[SourceQuality "1"]
[TimeControl "5400+30"]

1. Nf3 {[%emt 0:01:20]} d5 {[%emt 0:00:42]} 2. e3 {[%emt 0:00:08]} Nf6 {[%emt 0:00:57]} 3. c4 {[%emt 0:00:07]} e6 {[%emt 0:02:33]} 4. Nc3 {[%emt 0:00:58]} b6 {[%emt 0:00:46]} 5. b3 {[%emt 0:00:52]} Bb7 {[%emt 0:00:02]} 6. Bb2 {[%emt 0:00:07]} Nbd7 {[%emt 0:00:26]} 7. cxd5 {[%emt 0:00:07]} exd5 {[%emt 0:00:14]} 8. Rc1 {[%emt 0:00:05]} a6 {[%emt 0:00:28]} 9. Ne2 {[%emt 0:00:04]} Rc8 {[%emt 0:10:49]} 10. g3 {[%emt 0:02:11]} Nc5 {[%emt 0:06:55]} 11. d3 {[%emt 0:05:05]} Ne6 {[%emt 0:02:02]} 12. a3 {[%emt 0:06:18]} Bd6 {[%emt 0:03:08]} 13. Bh3 {[%emt 0:00:25]} c5 {[%emt 0:04:23]} 14. O-O {[%emt 0:00:40]} O-O {[%emt 0:03:49]} 15. Bg2 {[%emt 0:03:57]} Re8 {[%emt 0:02:15]} 16. d4 {[%emt 0:06:12]} Ne4 {[%emt 0:07:18]} 17. dxc5 {[%emt 0:00:56]} bxc5 {[%emt 0:00:42]} 18. Nd2 {[%emt 0:00:39]} N6g5 {[%emt 0:02:31]} 19. Nc3 {[%emt 0:05:32]} Nxc3 {[%emt 0:05:13]} 20. Bxc3 {[%emt 0:00:08]} Bc6 {[%emt 0:10:43]} 21. Bb2 {[%emt 0:02:24]} Bf8 {[%emt 0:03:20]} 22. h4 {[%emt 0:01:33]} Ne4 {[%emt 0:02:07]} 23. Nxe4 {[%emt 0:18:57]} dxe4 {[%emt 0:00:02]} 24. Qxd8 {[%emt 0:01:25]} Rexd8 {[%emt 0:00:06]} 25. Rfd1 {[%emt 0:00:08]} a5 {[%emt 0:05:15]} 26. Rxd8 {[%emt 0:21:26]} Rxd8 {[%emt 0:00:03]} 27. b4 {[%emt 0:04:04]} axb4 {[%emt 0:01:19]} 28. axb4 {[%emt 0:00:03]} Rb8 {[%emt 0:00:37]} 29. Ba3 {[%emt 0:00:34]} cxb4 {[%emt 0:01:04]} 30. Bxb4 {[%emt 0:00:06]} Bd5 {[%emt 0:10:17]} 31. Bxf8 {[%emt 0:00:37]} Kxf8 {[%emt 0:00:01]} 32. Rd1 {[%emt 0:00:17]} Rb5 {[%emt 0:03:04]} 33. g4 {[%emt 0:00:23]} Be6 {[%emt 0:01:54]} 34. g5 {[%emt 0:00:15]} f6 {[%emt 0:01:26]} 35. gxf6 {[%emt 0:06:40]} gxf6 {[%emt 0:00:02]} 36. Kh2 {[%emt 0:04:17]} f5 {[%emt 0:00:46]} 37. Rd6 {[%emt 0:00:21]} Ke7 {[%emt 0:00:24]} 38. Ra6 {[%emt 0:00:04]} Rb7 {[%emt 0:00:58]} 39. Kg3 {[%emt 0:00:20]} Kf6 {[%emt 0:00:38]} 40. Bh3 {[%emt 0:00:06]} Rb2 {[%emt 0:00:38]} 41. Rc6 {[%emt 0:03:21]} Rd2 {[%emt 0:04:09]} 42. Bf1 {[%emt 0:00:10]} Ke5 {[%emt 0:01:31]} 43. Bc4 {[%emt 0:02:13]} Bxc4 {[%emt 0:00:09]} 44. Rxc4 {[%emt 0:00:01]} h6 {[%emt 0:04:53]} 45. Rc8 {[%emt 0:00:14]} Rd6 {[%emt 0:00:23]} 46. h5 {[%emt 0:00:05]} Rd2 {[%emt 0:00:46]} 47. Re8+ {[%emt 0:01:02]} Kf6 {[%emt 0:00:02]} 48. Rg8 {[%emt 0:00:03]} Ke5 {[%emt 0:00:14]} 49. Kg2 {[%emt 0:05:24]} Rd6 {[%emt 0:00:38]} 50. Rh8 {[%emt 0:00:32]} Rf6 {[%emt 0:00:52]} 51. Kg3 {[%emt 0:00:53]} 1/2-1/2

[Event "1000GM Summer GM-I 2024"]
[Site "San Jose"]
[Date "2024.07.05"]
[Round "4.3"]
[White "Grigoryan, Karen"]
[Black "Sripada, Havish"]
[Result "1-0"]
[ECO "A06"]
[WhiteElo "2573"]
[BlackElo "2290"]
[Annotator "TA"]
[PlyCount "85"]
[EventDate "2024.07.03"]
[EventType "tourn"]
[EventCountry "USA"]
[SourceTitle "playchess.com"]
[Source "ChessBase"]
[SourceQuality "1"]
[TimeControl "5400+30"]

{[%evp 11,85,-4,1,0,0,0,10,12,46,41,41,47,58,47,56,71,52,27,39,-28,-20,-25,-27,-48,-38,-79,-50,-54,-54,-64,-39,-41,-35,-39,-39,-28,-10,-13,17,17,82,61,82,19,57,45,54,54,71,74,83,63,115,114,128,117,117,135,239,232,507,488,733,740,2407,2228,29988,29989,29989,29990,29990,29991,29991,29992,29997,29998]} 1. Nf3 {[%emt 0:03:26]} d5 {[%emt 0:00:09]} 2. g3 {[%emt 0:00:08]} Nf6 {[%emt 0:00:08]} 3. Bg2 {[%emt 0:00:11]} e6 {[%emt 0:00:10]} 4. O-O {[%emt 0:00:06]} Be7 {[%emt 0:00:14]} 5. b3 {[%emt 0:00:07]} O-O {[%emt 0:00:30]} 6. Bb2 {[%emt 0:00:05]} c5 {[%emt 0:01:41]} 7. e3 {[%emt 0:00:23]} b6 {[%emt 0:00:49]} 8. c4 {[%emt 0:01:56]} Ba6 {[%emt 0:00:14]} 9. Ne5 {[%emt 0:03:40] The position is equal.} Bd6 {[%emt 0:07:07]} 10. f4 {[%emt 0:02:25]} Nbd7 {[%emt 0:05:09]} 11. Nxd7 {[%emt 0:02:17]} Nxd7 {[%emt 0:01:28]} 12. Nc3 {[%emt 0:04:48]} Be7 {[%emt 0:03:27]} 13. d3 {[%emt 0:06:18]} Nf6 {[%emt 0:01:09]} 14. Qf3 {[%emt 0:05:19]} Bb7 {[%emt 0:04:13]} 15. e4 {[%emt 0:04:17]} (15. g4 $14) 15... d4 $11 {[%emt 0:05:46]} 16. Ne2 {[%emt 0:00:41]} Nd7 {[%emt 0:00:35]} 17. g4 {[%emt 0:00:30]} e5 {[%emt 0:11:02]} 18. f5 {[%emt 0:01:27]} Bg5 {[%emt 0:05:39]} 19. Bc1 {[%emt 0:00:34]} a5 {[%emt 0:02:14]} 20. a3 {[%emt 0:02:57]} Bc6 {[%emt 0:03:50]} 21. a4 {[%emt 0:00:50]} Bxc1 {[%emt 0:06:34]} 22. Raxc1 {[%emt 0:00:16]} f6 {[%emt 0:04:05]} 23. h4 {[%emt 0:00:13]} Rf7 {[%emt 0:06:50]} 24. Qg3 {[%emt 0:00:21]} Nf8 {[%emt 0:00:37]} 25. g5 {[%emt 0:00:34]} Qc7 {[%emt 0:01:06]} (25... Kh8 $11 {remains equal.}) 26. Kh2 {[%emt 0:00:46]} Kh8 {[%emt 0:00:30]} 27. Bh3 {[%emt 0:01:24]} (27. g6 $16 Re7 28. gxh7) 27... Qd6 {[%emt 0:03:06]} 28. Ng1 {[%emt 0:00:34]} Re7 {[%emt 0:02:33]} 29. Nf3 {[%emt 0:00:26]} Be8 {[%emt 0:00:16]} 30. Rg1 $36 {[%emt 0:00:32][%mdl 2048] White is in control.} Bh5 {[%emt 0:01:30] [#]} 31. Bg4 $1 {[%emt 0:05:18]} Bxg4 {[%emt 0:00:12]} (31... Bf7 $14) 32. Qxg4 $16 {[%emt 0:00:05]} Nd7 {[%emt 0:00:40]} 33. Rg3 {[%emt 0:00:16]} Qb8 {[%emt 0:02:09]} 34. Rcg1 {[%emt 0:00:09] White is more active.} Qf8 {[%emt 0:00:15] [#]} (34... Qd6 $16 35. Kh1 Rg8) 35. Qh3 $1 $18 {[%emt 0:01:27]} Ra7 $2 {[%emt 0:00:26]} (35... Rc8 {is a better defense.} 36. Kh1 Qd8) 36. h5 {[%emt 0:00:18] Black must now prevent Nh4.} Qe8 {[%emt 0:07:17]} (36... fxg5 $142 37. Nxg5 Qf6) 37. h6 {[%emt 0:00:36]} gxh6 {[%emt 0:03:47]} 38. Qxh6 {[%emt 0:00:25]} Rf7 {[%emt 0:00:49]} 39. Nh4 {[%emt 0:00:41] White mates.} Rg7 {[%emt 0:02:22]} 40. gxf6 {[%emt 0:00:24][%csl Gf6,Gg1,Gg3][%cal Rh6g7]} Rxg3 {[%emt 0:00:15]} 41. Rxg3 {[%emt 0:00:04][%csl Gf6,Gg3][%cal Rh6g7,Bg1g3,Bg3g7,Bg7a7][%mdl 32]} Nf8 {[%emt 0:10:07] Black is weak on the light squares} 42. Rg7 {[%emt 0:00:24]} b5 {[%emt 0:00:00]} 43. Rxa7 {[%emt 0:00:10] Weighted Error Value: White=0.10 (very precise) /Black=0.35.  Mistake:       	White=2     	Black=5      Inaccurate:     	White=1     	Black=5      OK:         	White=14    	Black=4      Best:        	White=2     	Black=1      Strong:       	White=1     	---} 1-0

[Event "1000GM Summer GM-I 2024"]
[Site "San Jose"]
[Date "2024.07.05"]
[Round "4.4"]
[White "Shivakumar, Shawnak"]
[Black "Martinez, Martin"]
[Result "1/2-1/2"]
[ECO "E62"]
[WhiteElo "2315"]
[BlackElo "2390"]
[Annotator "TA"]
[PlyCount "160"]
[EventDate "2024.07.03"]
[EventType "tourn"]
[EventCountry "USA"]
[SourceTitle "playchess.com"]
[Source "ChessBase"]
[SourceQuality "1"]
[TimeControl "5400+30"]

{[%evp 94,160,73,0,73,73,74,74,74,74,74,6,55,37,37,37,37,37,37,3,37,0,0,0,0,0,0,0,0,0,0,0,0,0,0,0,0,0,0,0,0,0,0,0,0,0,0,0,0,0,0,0,0,0,0,0,0,0,0,0,0,0,0,0,0,0,0,0,0]} 1. d4 {[%emt 0:11:21]} Nf6 {[%emt 0:00:15]} 2. Nf3 {[%emt 0:00:25]} g6 {[%emt 0:00:07]} 3. c4 {[%emt 0:00:15]} Bg7 {[%emt 0:00:05]} 4. g3 {[%emt 0:00:06]} O-O {[%emt 0:00:04]} 5. Bg2 {[%emt 0:00:07]} d6 {[%emt 0:00:11]} 6. O-O {[%emt 0:00:15]} c6 {[%emt 0:00:05]} 7. Nc3 {[%emt 0:00:40]} a6 {[%emt 0:00:04]} 8. e4 {[%emt 0:02:36]} b5 {[%emt 0:00:40]} 9. e5 {[%emt 0:02:25]} Ne8 {[%emt 0:01:01]} 10. Qe2 {[%emt 0:14:10]} bxc4 {[%emt 0:28:15] E62: King's Indian: Fianchetto: 6...c6 and Panno Variation (6...Nc6) without ...a6.} 11. Qxc4 {[%emt 0:00:55]} d5 {[%emt 0:00:17]} 12. Qa4 {[%emt 0:09:50]} Nc7 {[%emt 0:00:20]} 13. Be3 {[%emt 0:03:20]} Ne6 $146 {[%emt 0:03:59]} ({Predecessor:} 13... Nb5 14. Rac1 Nd7 15. Qc2 Nb6 16. b3 a5 17. Rfe1 Bf5 18. Qd2 a4 19. Nxb5 cxb5 {1-0 Lempert,I-Kozlov,V Goldberg Memorial 1990 (3)}) 14. Rac1 {[%emt 0:01:03]} Bb7 {[%emt 0:04:17]} 15. Qb3 {[%emt 0:02:47]} Ra7 {[%emt 0:00:21]} 16. Bh3 {[%emt 0:01:40]} c5 {[%emt 0:06:47]} 17. Na4 {[%emt 0:07:44]} c4 {[%emt 0:00:51]} 18. Qb6 {[%emt 0:00:36]} Qxb6 {[%emt 0:00:45]} 19. Nxb6 {[%emt 0:00:06]} Bc6 {[%emt 0:00:53]} 20. b3 {[%emt 0:12:42]} Rb7 {[%emt 0:00:25]} 21. Na4 {[%emt 0:00:05]} Bxa4 {[%emt 0:01:45]} 22. bxa4 {[%emt 0:00:07]} Nd7 {[%emt 0:13:55]} 23. Bxe6 {[%emt 0:01:39]} fxe6 {[%emt 0:05:11]} 24. Ng5 {[%emt 0:00:01]} Rb6 {[%emt 0:11:54]} 25. Rb1 {[%emt 0:03:42]} Rfb8 {[%emt 0:07:57]} 26. Rxb6 {[%emt 0:00:14]} Rxb6 {[%emt 0:00:08]} 27. a5 {[%emt 0:00:14]} Rb5 {[%emt 0:00:39]} 28. Nxe6 {[%emt 0:02:27]} Rxa5 {[%emt 0:01:41]} 29. Rb1 {[%emt 0:00:50]} Rb5 {[%emt 0:02:37]} 30. Rxb5 {[%emt 0:01:30]} axb5 {[%emt 0:00:04]} 31. Nc7 {[%emt 0:00:09]} Nb6 {[%emt 0:00:05]} 32. Nxb5 {[%emt 0:00:21]} e6 {[%emt 0:00:04]} 33. Kf1 {[%emt 0:03:21]} Kf7 {[%emt 0:00:30]} 34. Ke2 {[%emt 0:00:24]} Ke7 {[%emt 0:00:07]} 35. Kd2 {[%emt 0:00:19]} Kd7 {[%emt 0:00:08]} 36. Nc3 {[%emt 0:01:11]} Bf8 {[%emt 0:00:07]} 37. g4 {[%emt 0:00:43]} Bb4 {[%emt 0:00:17]} 38. Kc2 {[%emt 0:00:07]} Bxc3 {[%emt 0:00:53]} 39. Kxc3 {[%emt 0:00:28]} Na4+ {[%emt 0:00:44]} 40. Kc2 {[%emt 0:03:32]} Ke7 {[%emt 0:01:51]} 41. Bd2 {[%emt 0:04:00]} Kf7 {[%emt 0:00:32]} 42. Kd1 {[%emt 0:02:05]} Kg7 {[%emt 0:00:09]} 43. Ke2 {[%emt 0:01:08]} Kf7 {[%emt 0:00:04]} 44. a3 {[%emt 0:00:40]} Ke7 {[%emt 0:00:21]} 45. Ke3 {[%emt 0:00:57]} Kf7 {[%emt 0:00:10]} 46. Kf4 {[%emt 0:02:38]} Ke7 {[%emt 0:00:40]} 47. Ke3 {[%emt 0:00:58]} Kf7 {[%emt 0:00:06]} 48. Kf4 {[%emt 0:01:06]} Ke7 $1 {[%emt 0:00:35]} 49. h3 {[%emt 0:02:31]} Kf7 {[%emt 0:00:12]} 50. h4 {[%emt 0:00:07]} Nb2 {[%emt 0:01:15]} 51. f3 {[%emt 0:02:07]} Na4 {[%emt 0:03:12]} 52. h5 {[%emt 0:00:36]} (52. Bb4 $16) 52... Kg7 {[%emt 0:00:49]} (52... c3 $11 53. Bc1 gxh5 54. gxh5 Kg7) 53. hxg6 {[%emt 0:01:58]} Kxg6 {[%emt 0:00:26]} 54. Ke3 {[%emt 0:00:20]} h5 {[%emt 0:00:37]} 55. gxh5+ {[%emt 0:00:58]} Kxh5 {[%emt 0:00:04]} 56. Kf4 {[%emt 0:00:13]} Nb2 {[%emt 0:00:21]} 57. Bc3 {[%emt 0:00:54]} Nd1 {[%emt 0:00:37]} 58. Bd2 {[%emt 0:00:17]} c3 {[%emt 0:02:49]} 59. Bc1 {[%emt 0:00:06]} c2 {[%emt 0:00:09]} 60. a4 {[%emt 0:01:06]} Nc3 {[%emt 0:00:06]} 61. Ke3 {[%emt 0:00:03]} Nxa4 {[%emt 0:00:08]} 62. Kd3 {[%emt 0:00:16]} Kh4 {[%emt 0:00:36]} 63. Kxc2 {[%emt 0:00:58]} Kg3 {[%emt 0:00:08]} 64. f4 {[%emt 0:01:02]} (64. Kb3 $5 Nb6 $8 65. f4 $11) 64... Kg4 {[%emt 0:00:05]} 65. Kb3 {[%emt 0:00:12]} Nb6 {[%emt 0:00:07]} 66. Kb4 {[%emt 0:00:07]} Kf5 {[%emt 0:00:56]} 67. Kb5 {[%emt 0:00:16]} Nc4 {[%emt 0:00:13]} 68. Kc6 {[%emt 0:00:05]} Na5+ {[%emt 0:00:23]} 69. Kd7 {[%emt 0:00:29]} Nc4 {[%emt 0:00:18]} 70. Ke7 {[%emt 0:00:28]} Na5 {[%emt 0:00:10]} 71. Kd7 {[%emt 0:00:09]} Nb3 {[%emt 0:00:05]} 72. Bb2 {[%emt 0:00:13]} Nd2 {[%emt 0:00:09]} 73. Bc1 {[%emt 0:00:40]} Nf1 {[%emt 0:00:04]} 74. Ke7 {[%emt 0:00:24]} Ng3 {[%emt 0:00:10]} 75. Kd7 {[%emt 0:00:14]} Nh5 {[%emt 0:00:29]} 76. Ke7 {[%emt 0:00:08]} Ng7 {[%emt 0:00:03]} 77. Kf7 {[%emt 0:00:06]} Nh5 {[%emt 0:00:02]} 78. Ke7 {[%emt 0:00:05]} (78. Bd2 $5) 78... Ng7 {[%emt 0:00:03]} 79. Kf7 {[%emt 0:00:04]} Nh5 {[%emt 0:00:03]} 80. Ke7 {[%emt 0:00:04]} Ng7 {[%emt 0:00:04]} 1/2-1/2

[Event "1000GM Summer GM-I 2024"]
[Site "San Jose"]
[Date "2024.07.05"]
[Round "4.5"]
[White "Levine, Joseph"]
[Black "Sivakumar, Shaaketh"]
[Result "1-0"]
[ECO "B10"]
[WhiteElo "2364"]
[BlackElo "2369"]
[Annotator "TA"]
[PlyCount "95"]
[EventDate "2024.07.03"]
[EventType "tourn"]
[EventCountry "USA"]
[SourceTitle "playchess.com"]
[Source "ChessBase"]
[SourceQuality "1"]
[TimeControl "5400+30"]

{[%evp 24,95,0,-25,-5,-82,-37,-46,0,0,62,0,0,0,0,-5,-12,-27,0,-12,0,0,106,85,90,89,79,79,79,79,79,79,94,94,116,84,143,135,119,0,128,0,135,90,94,85,524,520,1353,1218,1085,750,2789,1914,2921,2093,4594,4581,29963,29957,29973,29974,29985,29986,29990,29988,29988,29983,29983,29978,29983,29984,29992,29992]} 1. e4 {[%emt 0:00:42]} c6 {[%emt 0:00:10]} 2. Nf3 {[%emt 0:00:08]} d5 {[%emt 0:00:08]} 3. d3 {[%emt 0:00:13]} Qc7 {[%emt 0:00:03]} 4. Nc3 {[%emt 0:00:07]} dxe4 {[%emt 0:00:09]} 5. dxe4 {[%emt 0:00:05]} e5 {[%emt 0:00:09]} 6. Bc4 {[%emt 0:00:35] B10: Caro-Kann: 2 d3 and 2 c4.} b5 {[%emt 0:00:10] The main line 6...b5 scores better than 6...h6.} 7. Bb3 {[%emt 0:00:04]} h6 {[%emt 0:00:31]} 8. a4 {[%emt 0:00:58]} b4 {[%emt 0:00:09]} 9. Nb5 {[%emt 0:00:56]} cxb5 {[%emt 0:00:02]} 10. Bd5 {[%emt 0:00:08]} Bb7 {[%emt 0:00:10]} 11. Nxe5 {[%emt 0:00:15]} Bxd5 {[%emt 0:00:04]} 12. Qxd5 {[%emt 0:00:13]} Bd6 $146 {[%emt 0:00:03]} ({Predecessor:} 12... Nf6 13. Qxa8 Qxe5 14. Be3 Bd6 15. Rd1 O-O 16. Bd4 Qe6 17. Bxf6 Qxf6 18. axb5 Bc5 {0-1 Ongut,T (2281)-Berczes,D (2446) HUN-chT 2223 2022 (2.3)}) 13. Qxa8 {[%emt 0:22:13]} Bxe5 {[%emt 0:00:03]} 14. O-O {[%emt 0:00:33]} (14. axb5 $11 {remains equal.} Nf6 15. Qxa7 (15. Rxa7 $2 Qc4 $19) 15... Qxc2 16. O-O) 14... bxa4 {[%emt 0:11:07]} 15. Rxa4 {[%emt 0:16:21]} Nf6 {[%emt 0:02:18]} (15... Ne7 $1 $15 16. Qxa7 (16. Rxb4 O-O $17) (16. Rxa7 Qxc2 17. Qb7 O-O $15) 16... Bxh2+ 17. Kh1 Qc4) 16. Qxa7 $11 {[%emt 0:07:07]} Qxc2 {[%emt 0:03:58]} (16... Bxh2+ $11 17. Kh1 Nc6 18. Qxc7 Bxc7) 17. Rxb4 {[%emt 0:16:53]} (17. Ra5 $14 Qc7 (17... Qxe4 18. Qc5 $16) 18. Qxc7 Bxc7 19. Rc5) 17... O-O $11 {[%emt 0:00:35]} (17... Nxe4 $2 18. Rxb8+ Bxb8 19. Qxb8+ Ke7 20. Qxh8 $18) 18. Qa4 {[%emt 0:01:17]} Rc8 {[%emt 0:03:08]} 19. Be3 {[%emt 0:19:07]} Ng4 {[%emt 0:05:03]} (19... Bxb2 $2 20. Qxc2 Rxc2 21. Rxb8+ $18) 20. Ba7 {[%emt 0:03:39]} (20. Qxc2 Rxc2 21. g3 Nc6 $17 (21... Rxb2 22. Rxb2 Bxb2 23. Bc5 $11)) 20... Bxh2+ {[%emt 0:06:24]} (20... Nxh2 21. Qxc2 Rxc2 22. Bxb8 $16 (22. Rxb8+ $2 Bxb8 23. Bxb8 Nxf1 $19)) 21. Kh1 {[%emt 0:00:01]} Qc7 {[%emt 0:03:37]} 22. e5 {[%emt 0:05:41]} Nxe5 {[%emt 0:01:16]} (22... h5 $11 {keeps the balance.} 23. Bxb8 (23. Rxg4 hxg4 24. Bxb8 Qxb8 $11) 23... Rxb8 24. Rxg4 hxg4 25. Kxh2 Qxe5+ (25... Rxb2 26. Qe4 $17) 26. g3 Rxb2) 23. Bxb8 {[%emt 0:00:21]} (23. Kxh2 $2 Nf3+ (23... Nd3+ $2 24. Kg1 $19) 24. Kh3 Qh2+ 25. Kg4 Qxg2+ 26. Kf4 Nd2 $19 (26... Qxf1 $2 27. Rxb8 Rxb8 28. Bxb8 $19)) 23... Rxb8 {[%emt 0:00:02]} 24. Rxb8+ {[%emt 0:04:53]} (24. Kxh2 $2 Nf3+ 25. Kh3 Qh2+ 26. Kg4 Ne5+ (26... Qxg2+ $2 27. Kf4 $19) (26... Rxb4+ $2 27. Qxb4 Ne5+ 28. Kf5 $19) 27. Kf5 Qh5+ 28. Kf4 Rxb4+ 29. Qxb4 Nd3+ 30. Ke4 Nxb4 $19) 24... Qxb8 {[%emt 0:00:01] [#]} 25. Qh4 $1 {[%emt 0:00:00]} (25. Kxh2 $2 {too greedy.} Nf3+ (25... Qxb2 26. Qa8+ Kh7 27. Qe4+ Ng6 28. Qf5 $18) (25... Ng4+ 26. Kh3 $15) 26. Kh3 Qh2+ 27. Kg4 Qxg2+ (27... Qh4+ $2 28. Kxf3 Qxa4 29. Kg3 $19) 28. Kf4 Nd2 $19 (28... Qxf1 29. Kxf3 Qd3+ 30. Kg2 $15)) (25. Re1 g5 $11) 25... Qxb2 {[%emt 0:05:30]} 26. Kxh2 {[%emt 0:00:00]} Qe2 {[%emt 0:01:20]} 27. Kg1 {[%emt 0:00:00]} Nd3 {[%emt 0:01:09]} 28. Qc4 {[%emt 0:00:39]} g6 {[%emt 0:02:41]} 29. Qd4 {[%emt 0:00:11]} Ne1 {[%emt 0:02:12]} (29... Ne5 $142) 30. Qd8+ {[%emt 0:01:09]} Kg7 {[%emt 0:00:17]} 31. Qd4+ {[%emt 0:00:04]} Kg8 $1 {[%emt 0:00:11]} 32. Qd8+ {[%emt 0:01:21]} Kg7 $1 {[%emt 0:00:01]} 33. Qa8 {[%emt 0:00:34]} Qe5 {[%emt 0:00:31]} 34. Qa3 {[%emt 0:00:30]} h5 $2 {[%emt 0:00:47][%mdl 8192] [#]} (34... Nc2 $16 {is tougher.} 35. Qc1 Nd4) 35. Qb3 $1 $18 {[%emt 0:00:25]} Kg8 {[%emt 0:02:45]} (35... Kh7 $142 36. Qxf7+ Kh6) 36. Qd1 $18 {[%emt 0:00:29]} Nxg2 {[%emt 0:00:08]} 37. Qd8+ {[%emt 0:00:19]} ({Not} 37. Kxg2 Qg5+ 38. Kh3 Qf5+ 39. Kh2 Qf4+ 40. Kh1 Qh4+ 41. Kg2 Qg5+ 42. Kh3 Qf5+ 43. Kg3 Qg5+ 44. Kh2 Qh4+ 45. Kg2 Qg5+ $11) 37... Kh7 {[%emt 0:00:46]} 38. Kxg2 {[%emt 0:00:03]} Qe4+ {[%emt 0:00:16]} 39. f3 {[%emt 0:00:11]} Qf4 {[%emt 0:00:10]} 40. Rh1 {[%emt 0:00:56]} Qe3 {[%emt 0:00:13]} 41. Qf6 {[%emt 0:00:41]} Kg8 {[%emt 0:00:40]} 42. Ra1 {[%emt 0:00:49]} Qd2+ {[%emt 0:00:02]} 43. Kg3 {[%emt 0:00:27]} Qd5 {[%emt 0:00:01]} 44. Re1 {[%emt 0:00:31]} Qb5 {[%emt 0:00:31]} 45. Re7 {[%emt 0:00:34]} Qb8+ {[%emt 0:00:31]} 46. Qe5 {[%emt 0:00:22]} h4+ {[%emt 0:00:09]} 47. Kxh4 {[%emt 0:00:33]} Qb4+ {[%emt 0:00:05]} 48. Kg3 {[%emt 0:00:37]} 1-0